bitfinex/quotes_ETHUSD_20240917
["timestamp","ask_amount","ask_price","bid_price","bid_amount"]
[1726611964332,4.2716,2341.1,2340.6,4.27227]
[1726611964719,4.2716,2341.1,2340.5,4.27256]
[1726611964720,4.2716,2341.1,2340.7,4.27221]
[1726611964930,4.2716,2341.1,2339.9,0.015]
[1726611964931,4.27255,2340.6,2339.9,0.015]
[1726611965103,4.27303,2340.3,2339.9,0.015]
[1726611965444,4.27278,2340.4,2339.9,0.015]
[1726611965736,1.26499703,2340.4,2339.9,0.015]
[1726611965917,7.42,2340.8,2340.0,2.3247]
[1726611966230,11.69213,2340.8,2340.2,4.27301]
[1726611966845,4.27241,2340.6,2340.1,7.27323]
[1726611969120,4.27266,2340.5,2340.1,3.0]
[1726611969520,5.868869,2340.6,2340.1,7.27331]
[1726611969730,10.141369,2340.6,2340.1,7.27331]
[1726611970448,10.141419,2340.6,2340.1,7.27331]
[1726611971343,5.868869,2340.6,2340.1,7.27331]
[1726611971646,10.141379,2340.6,2340.1,7.27331]
[1726611972009,5.868869,2340.6,2340.1,7.27331]
[1726611973002,4.27241,2340.6,2340.1,7.27331]
[1726611975641,4.27241,2340.6,2340.2,4.27313]
[1726611976049,11.69217,2340.8,2340.3,4.27285]
[1726611976745,15.96433,2340.8,2340.3,4.27285]
[1726611976902,11.69216,2340.8,2340.4,4.27275]
[1726611977216,4.2718,2341.0,2340.5,2.2635]
[1726611977421,1.10503653,2341.1,2340.5,2.2635]
[1726611977422,4.27195,2340.9,2340.5,2.2635]
[1726611978019,8.54393,2340.9,2340.5,2.2635]
[1726611979110,4.27204,2340.8,2340.3,4.27294]
[1726611979406,0.96489665,2340.9,2340.4,4.27265]
[1726611979638,0.96489665,2340.9,2340.5,2.4637]
[1726611979832,4.27188,2340.9,2340.5,2.4637]
[1726611980559,4.27188,2340.9,2340.5,6.73627]
[1726611981048,4.27168,2341.0,2340.5,6.73627]
[1726611981454,4.27168,2341.0,2340.5,6.73619]
[1726611981615,4.27168,2341.0,2340.6,4.27238]
[1726611982913,4.27168,2341.0,2340.5,6.73628]
[1726611984714,0.44665653,2341.1,2341.0,6.73537]
[1726611984917,0.44665653,2341.1,2341.0,2.4637]
[1726611985110,8.54176,2341.5,2341.0,6.73537]
[1726611985310,4.27087,2341.5,2341.0,6.73537]
[1726611985655,4.27063,2341.6,2341.1,4.2714]
[1726611985861,4.27063,2341.6,2341.1,8.5428]
[1726611986098,4.27051,2341.7,2341.1,4.2714]
[1726611986258,4.27078,2341.5,2341.1,4.2714]
[1726611986594,4.27051,2341.7,2341.1,4.2714]
[1726611986595,4.27058,2341.6,2341.1,8.54278]
[1726611986882,4.27058,2341.6,2341.1,9.7535094]
[1726611987300,19.19661259,2342.0,2341.4,4.27085]
[1726611987301,4.27012,2341.9,2341.4,4.27085]
[1726611988802,4.27012,2341.9,2341.5,4.27076]
[1726611989571,7.42,2342.0,2341.5,4.27068]
[1726611989753,4.2697,2342.1,2341.6,6.58628]
[1726611990584,8.37532872,2342.2,2341.7,4.27035]
[1726611990585,4.26958,2342.2,2341.7,4.27035]
[1726611990773,4.26958,2342.2,2341.7,4.2703]
[1726611991097,8.5392,2342.2,2341.7,4.2703]
[1726611991793,4.26958,2342.2,2341.7,4.2703]
[1726611992377,4.26958,2342.2,2341.7,8.54062]
[1726611992676,4.26958,2342.2,2341.7,4.2703]
[1726611992880,4.26958,2342.2,2341.7,8.54061]
[1726611993081,15.95852,2342.4,2341.8,6.64467]
[1726611993408,0.48595259,2342.6,2342.2,2.3746]
[1726611993588,0.48595259,2342.6,2342.2,6.64405]
[1726611993786,0.48595259,2342.6,2342.3,4.26929]
[1726611993985,4.75483259,2342.6,2342.2,2.3746]
[1726611995175,4.3082491,2342.6,2342.2,2.3746]
[1726611996099,0.0393691,2342.6,2342.2,6.64404]
[1726611997217,6.60991,2342.4,2341.9,4.26994]
[1726611997439,2.3407,2342.4,2341.9,4.26994]
[1726611997641,2.3407,2342.4,2342.0,4.26984]
[1726611998905,10.71561872,2342.4,2341.8,2.3728]
[1726611999247,4.26958,2342.2,2341.7,4.27027]
[1726612000024,8.5392,2342.2,2341.7,4.27027]
[1726612000611,4.26958,2342.2,2341.7,4.27027]
[1726612000945,4.26958,2342.2,2341.8,4.27019]
[1726612001241,2.3407,2342.4,2342.0,4.26974]
[1726612001406,11.7282291,2342.6,2342.0,4.26974]
[1726612001407,14.1139291,2342.6,2342.0,6.72294]
[1726612001604,4.26898,2342.5,2342.0,6.72294]
[1726612002135,4.26898,2342.5,2342.0,10.9927]
[1726612002918,4.26898,2342.5,2342.1,4.26963]
[1726612004136,15.98046528,2342.6,2342.1,4.26963]
[1726612004439,14.1138291,2342.6,2342.2,4.26944]
[1726612004610,6.6938291,2342.6,2342.2,4.26944]
[1726612005369,4.26894,2342.5,2342.1,4.26966]
[1726612009863,6.6938591,2342.6,2342.1,4.26966]
[1726612010489,6.6938591,2342.6,2342.0,6.72301]
[1726612010490,6.6938591,2342.6,2342.2,4.26948]
[1726612010693,0.44658004,2342.5,2342.2,4.26948]
[1726612010874,0.44658004,2342.5,2342.3,6.71835]
[1726612011076,0.44658004,2342.5,2342.3,6.71838]
[1726612011979,0.0393691,2342.6,2342.3,6.71838]
[1726612012302,0.44654953,2342.5,2342.3,6.71838]
[1726612013401,0.44654953,2342.5,2342.4,4.26912]
[1726612013564,0.44654953,2342.5,2342.4,5.4778209]
[1726612014807,0.44654953,2342.5,2342.4,1.2087009]
[1726612015004,0.44654953,2342.5,2342.3,6.71848]
[1726612015306,0.0393691,2342.6,2342.3,6.71848]
[1726612015602,0.44654034,2342.5,2342.4,4.26912]
[1726612016985,0.21995009,2342.5,2342.4,4.26912]
[1726612017268,0.0393691,2342.6,2342.4,4.26912]
[1726612017500,0.0393691,2342.6,2342.5,1.09876]
[1726612018000,0.0393691,2342.6,2342.5,5.3677]
[1726612018302,0.0393691,2342.6,2342.5,1.09876]
[1726612020468,0.0393691,2342.6,2342.3,6.71846]
[1726612021891,0.0393691,2342.6,2342.4,4.26909]
[1726612022180,2.3222691,2342.6,2342.2,4.26947]
[1726612022379,6.5910591,2342.6,2342.2,4.26947]
[1726612022580,6.5910591,2342.6,2342.3,0.853902]
[1726612023102,2.3222691,2342.6,2342.3,0.853902]
[1726612023674,2.3222691,2342.6,2342.3,5.123182]
[1726612024222,2.3222691,2342.6,2342.3,0.853902]
[1726612024976,6.5911091,2342.6,2342.1,4.26965]
[1726612025716,10.8599891,2342.6,2342.2,4.26947]
[1726612025915,4.26913,2342.4,2342.0,4.26984]
[1726612026121,4.26913,2342.4,2342.0,5.361684]
[1726612026881,4.26894,2342.5,2342.1,4.26964]
[1726612029314,4.2692,2342.4,2342.0,5.361764]
[1726612029516,4.26894,2342.5,2342.0,9.631494]
[1726612029715,4.26894,2342.5,2342.1,0.9631494]
[1726612030195,4.26894,2342.5,2342.1,5.2327894]
[1726612030594,4.26924,2342.4,2342.1,0.9631494]
[1726612030775,4.26924,2342.4,2342.0,4.26973]
[1726612031491,4.26894,2342.5,2342.0,8.53942]
[1726612031689,4.26894,2342.5,2342.1,4.26965]
[1726612032514,2.3222691,2342.6,2342.2,4.26947]
[1726612033231,0.0393691,2342.6,2342.2,6.73456]
[1726612033429,0.0393691,2342.6,2342.3,1.10041]
[1726612034535,0.0393691,2342.6,2342.3,1.09960672]
[1726612036035,0.0393691,2342.6,2342.3,5.36889672]
[1726612036339,0.0393691,2342.6,2342.3,4.26929]
[1726612040632,0.0393691,2342.6,2342.4,4.26898]
[1726612040831,0.0393691,2342.6,2342.5,4.35431082]
[1726612041016,0.0393691,2342.6,2342.5,8.62325082]
[1726612041223,0.0393691,2342.6,2342.5,11.00595082]
[1726612041429,0.0393691,2342.6,2342.5,12.02117508]
[1726612055672,0.0393691,2342.6,2342.5,4.26894]
[1726612058336,0.0393691,2342.6,2342.5,8.53788]
[1726612062494,1e-08,2342.6,2342.5,18.09522]
[1726612065382,1e-08,2342.6,2342.5,22.91416]
[1726612065544,1e-08,2342.6,2342.5,25.82175399]
[1726612065739,1e-08,2342.6,2342.5,21.55281399]
[1726612068595,1e-08,2342.6,2342.5,21.00281399]
[1726612076147,1e-08,2342.6,2342.5,18.71441399]
[1726612076383,1e-08,2342.6,2342.5,14.44547399]
[1726612076668,2.39370001,2342.6,2342.5,8.53788]
[1726612079564,1e-08,2342.6,2342.5,8.53788]
[1726612084764,1e-08,2342.6,2342.5,15.22432]
[1726612084971,1e-08,2342.6,2342.5,16.93601599]
[1726612086774,1e-08,2342.6,2342.5,14.51851599]
[1726612087675,1e-08,2342.6,2342.5,10.24957599]
[1726612094045,2.34500001,2342.6,2342.2,4.26941]
[1726612094357,2.345,2342.5,2342.2,4.26936]
[1726612094562,2.345,2342.5,2342.3,4.26928]
[1726612098966,2.345,2342.5,2342.4,8.53824]
[1726612099293,1e-08,2342.6,2342.5,8.53788]
[1726612100078,1e-08,2342.6,2342.5,10.90098]
[1726612100248,1e-08,2342.6,2342.5,15.16992]
[1726612102160,1e-08,2342.6,2342.5,10.90098]
[1726612102357,1e-08,2342.6,2342.5,12.5033824]
[1726612106479,1e-08,2342.6,2342.5,16.7723224]
[1726612106704,1e-08,2342.6,2342.5,20.3422369]
[1726612107587,1e-08,2342.6,2342.5,25.1611769]
[1726612107932,1e-08,2342.6,2342.5,26.07299448]
[1726612112412,1e-08,2342.6,2342.5,24.5912624]
[1726612112605,1e-08,2342.6,2342.5,27.96540775]
[1726612112808,1e-08,2342.6,2342.5,27.05371211]
[1726612115805,1e-08,2342.6,2342.5,26.48390234]
[1726612116019,1e-08,2342.6,2342.5,31.97794277]
[1726612119975,1e-08,2342.6,2342.5,34.18423479]
[1726612120886,1e-08,2342.6,2342.5,33.52898057]
[1726612121071,1e-08,2342.6,2342.5,29.26004057]
[1726612121277,1e-08,2342.6,2342.5,28.71004057]
[1726612121492,1e-08,2342.6,2342.5,20.34216861]
[1726612121695,1e-08,2342.6,2342.5,28.71004057]
[1726612121905,1e-08,2342.6,2342.5,24.44110057]
[1726612122617,1e-08,2342.6,2342.5,20.34216861]
[1726612122817,1e-08,2342.6,2342.5,14.97906861]
[1726612123021,1e-08,2342.6,2342.5,14.4092224]
[1726612123314,1e-08,2342.6,2342.5,18.50815436]
[1726612124177,1e-08,2342.6,2342.5,21.50815436]
[1726612129508,1e-08,2342.6,2342.5,24.56103636]
[1726612130582,1e-08,2342.6,2342.5,24.56104001]
[1726612130996,1e-08,2342.6,2342.5,23.99175436]
[1726612131201,1e-08,2342.6,2342.5,24.56104126]
[1726612132177,1e-08,2342.6,2342.5,23.99175436]
[1726612134311,1e-08,2342.6,2342.5,17.4092224]
[1726612134521,1e-08,2342.6,2342.5,21.50815436]
[1726612136638,1e-08,2342.6,2342.5,26.32709436]
[1726612136842,1e-08,2342.6,2342.5,28.77279436]
[1726612137903,1e-08,2342.6,2342.5,33.04173436]
[1726612138246,1e-08,2342.6,2342.5,33.69698858]
[1726612140279,0.0393691,2343.3,2343.2,22.51634]
[1726612140453,0.0393691,2343.3,2343.2,26.61527196]
[1726612146861,0.0393691,2343.3,2343.2,24.16957196]
[1726612147815,0.0393691,2343.3,2343.2,19.90191196]
[1726612147923,0.0393691,2343.3,2343.2,17.69442137]
[1726612148127,0.0393691,2343.3,2343.2,20.12633951]
[1726612156188,1e-08,2343.3,2343.2,20.12633951]
[1726612162476,1e-08,2343.3,2343.2,24.39399951]
[1726612162872,1e-08,2343.3,2343.2,20.12633951]
[1726612163097,1e-08,2343.3,2343.2,26.71819951]
[1726612163305,1e-08,2343.3,2343.2,22.45053951]
[1726612163806,1e-08,2343.3,2343.2,26.71819951]
[1726612163975,1e-08,2343.3,2343.2,22.45053951]
[1726612164171,1e-08,2343.3,2343.2,27.26819951]
[1726612167465,2.41010001,2343.3,2343.2,10.96723814]
[1726612167669,2.41010001,2343.3,2343.2,8.53532]
[1726612168779,2.41010001,2343.3,2343.2,11.53532]
[1726612172505,1e-08,2343.3,2343.2,11.53532]
[1726612172670,1e-08,2343.3,2343.2,15.80298]
[1726612172869,1e-08,2343.3,2343.2,11.53532]
[1726612178213,1e-08,2343.3,2343.2,13.55308214]
[1726612178417,1e-08,2343.3,2343.2,17.82074214]
[1726612179598,1e-08,2343.3,2343.2,13.55308214]
[1726612181541,1e-08,2343.3,2343.2,17.82074214]
[1726612182341,1e-08,2343.3,2343.2,13.55308214]
[1726612182948,1e-08,2343.3,2343.2,17.82074214]
[1726612184151,1e-08,2343.3,2343.2,13.55308214]
[1726612184637,1e-08,2343.3,2343.2,17.82074214]
[1726612185114,1e-08,2343.3,2343.2,13.55308214]
[1726612185515,1e-08,2343.3,2343.2,17.82074214]
[1726612186761,1e-08,2343.3,2343.2,13.55308214]
[1726612189062,1e-08,2343.3,2343.2,17.82074214]
[1726612190319,1e-08,2343.3,2343.2,13.55308214]
[1726612193539,1e-08,2343.3,2343.2,17.82074214]
[1726612195940,1e-08,2343.3,2343.2,18.38990335]
[1726612196527,1e-08,2343.3,2343.2,17.82074214]
[1726612196862,1e-08,2343.3,2343.2,18.38988456]
[1726612197068,1e-08,2343.3,2343.2,20.28132593]
[1726612198965,1e-08,2343.3,2343.2,18.38988456]
[1726612199467,1e-08,2343.3,2343.2,18.38989456]
[1726612200144,1e-08,2343.3,2343.2,14.12223456]
[1726612200409,1e-08,2343.3,2343.2,12.10447242]
[1726612202073,1e-08,2343.3,2343.2,11.53532]
[1726612202276,1e-08,2343.3,2343.2,17.69442137]
[1726612202572,1e-08,2343.3,2343.2,18.26362043]
[1726612203067,1e-08,2343.3,2343.2,14.90660995]
[1726612203266,1e-08,2343.3,2343.2,19.99150143]
[1726612203564,1e-08,2343.3,2343.2,15.72384143]
[1726612204769,1e-08,2343.3,2343.2,13.83240006]
[1726612205066,1e-08,2343.3,2343.2,12.10451906]
[1726612206061,2.46320001,2343.3,2343.2,12.10451906]
[1726612206891,2.46320001,2343.3,2343.2,12.1045121]
[1726612208291,1e-08,2343.3,2343.2,13.99595347]
[1726612210289,1e-08,2343.3,2343.2,12.1045121]
[1726612210492,1e-08,2343.3,2343.2,13.59517818]
[1726612210798,1e-08,2343.3,2343.2,15.59517818]
[1726612213437,1e-08,2343.3,2343.2,16.50588555]
[1726612213708,1e-08,2343.3,2343.2,16.50584467]
[1726612213913,1e-08,2343.3,2343.2,15.02598608]
[1726612214072,1e-08,2343.3,2343.2,16.5058083]
[1726612214274,1e-08,2343.3,2343.2,15.59514847]
[1726612214484,1e-08,2343.3,2343.2,15.59517348]
[1726612216180,1e-08,2343.3,2343.2,15.5951786]
[1726612217785,1e-08,2343.3,2343.2,15.59518142]
[1726612218092,1e-08,2343.3,2343.2,15.02598608]
[1726612218478,1e-08,2343.3,2343.2,15.59518109]
[1726612218728,1e-08,2343.3,2343.2,15.02598608]
[1726612219029,1e-08,2343.3,2343.2,15.59516907]
[1726612219440,1e-08,2343.3,2343.2,16.50586187]
[1726612219799,1e-08,2343.3,2343.2,15.59516907]
[1726612221125,2.2511,2343.2,2342.4,4.26899]
[1726612221310,2.2664,2342.7,2342.4,4.26899]
[1726612221511,2.2664,2342.7,2342.5,4.26877]
[1726612221718,4.26761001,2343.3,2342.5,2.31831837]
[1726612221719,2.2664,2343.2,2342.5,2.31831837]
[1726612222022,1e-08,2343.3,2343.2,8.53532]
[1726612222406,1e-08,2343.3,2343.2,4.26766]
[1726612222829,1e-08,2343.3,2343.1,4.26783]
[1726612223030,1e-08,2343.3,2343.0,3.0]
[1726612223192,1e-08,2343.3,2343.0,7.268]
[1726612223396,1e-08,2343.3,2343.0,7.39]
[1726612223842,1e-08,2343.3,2343.0,3.122]
[1726612224004,1e-08,2343.3,2343.0,0.122]
[1726612225743,1e-08,2343.3,2343.0,4.38999]
[1726612226145,1e-08,2343.3,2343.0,0.122]
[1726612243353,4.26756001,2343.3,2343.0,0.122]
[1726612243735,1e-08,2343.3,2343.0,0.122]
[1726612244670,4.26750001,2343.3,2343.0,0.122]
[1726612244968,6.68815,2343.1,2343.0,0.122]
[1726612246665,2.4203,2343.1,2343.0,0.122]
[1726612247668,6.68815,2343.1,2343.0,0.122]
[1726612252087,2.4203,2343.1,2343.0,0.122]
[1726612256454,4.26767,2343.2,2343.0,0.122]
[1726612256655,6.66311001,2343.3,2343.0,0.122]
[1726612256897,3.06190601,2343.3,2343.0,0.122]
[1726612257099,2.39560001,2343.3,2343.0,4.38985]
[1726612257860,1e-08,2343.3,2343.1,4.26785]
[1726612258136,1e-08,2343.3,2343.2,8.53532]
[1726612258261,1e-08,2343.3,2343.2,10.073297]
[1726612259182,1e-08,2343.3,2343.2,12.527897]
[1726612263134,1e-08,2343.3,2343.2,22.95506904]
[1726612263262,1e-08,2343.3,2343.2,31.49038904]
[1726612263560,1e-08,2343.3,2343.2,31.6981526]
[1726612265065,0.0393691,2344.1,2344.0,13.82942]
[1726612265372,0.0393691,2344.1,2344.0,21.37001337]
[1726612265776,0.0393691,2344.1,2344.0,21.92001337]
[1726612272731,0.0393691,2344.1,2344.0,15.212362]
[1726612272896,0.0393691,2344.1,2344.0,20.70514204]
[1726612274023,0.0393691,2344.1,2344.0,20.53707137]
[1726612278335,0.0393691,2344.1,2344.0,25.52135204]
[1726612278535,0.0393691,2344.1,2344.0,29.78756204]
[1726612279935,0.0393691,2344.1,2344.0,29.06949137]
[1726612280248,0.0393691,2344.1,2344.0,31.97644051]
[1726612282341,0.0393691,2344.1,2344.0,32.18619976]
[1726612282528,0.0393691,2344.8,2344.0,32.18619976]
[1726612282529,0.0393691,2344.8,2344.7,12.79479]
[1726612282705,0.0393691,2344.8,2344.7,20.01923137]
[1726612282905,0.0393691,2344.8,2344.7,22.02115451]
[1726612283648,0.0393691,2344.8,2344.7,19.68815451]
[1726612288010,0.0393691,2344.8,2344.7,15.42322451]
[1726612288650,0.0393691,2344.8,2344.7,19.68815451]
[1726612289451,0.0393691,2344.8,2344.7,17.79671314]
[1726612289659,0.0393691,2344.8,2344.7,19.68815451]
[1726612290012,0.0393691,2344.8,2344.7,17.79671314]
[1726612290210,0.0393691,2344.8,2344.7,13.53178314]
[1726612290785,2.3807691,2344.8,2344.6,4.26511]
[1726612291087,2.3807691,2344.8,2344.6,4.26509]
[1726612291605,2.3807691,2344.8,2344.6,4.26503]
[1726612291743,2.3807691,2344.8,2344.7,4.26493]
[1726612293240,2.3807691,2344.8,2344.6,4.26502]
[1726612293659,2.3807691,2344.8,2344.7,4.26493]
[1726612294954,0.0393691,2344.8,2344.7,19.072985]
[1726612296146,0.0393691,2344.8,2344.7,14.808055]
[1726612296778,0.0393691,2344.8,2344.7,19.072985]
[1726612296985,0.0393691,2344.8,2344.7,14.808055]
[1726612297388,0.0393691,2344.8,2344.7,19.072985]
[1726612298052,0.0393691,2344.8,2344.7,14.808055]
[1726612298278,0.0393691,2344.8,2344.7,19.072985]
[1726612301691,0.0393691,2344.8,2344.7,12.382855]
[1726612303094,0.0393691,2344.8,2344.7,16.647785]
[1726612303483,0.0393691,2344.8,2344.7,12.382855]
[1726612303686,0.0393691,2344.8,2344.7,16.647785]
[1726612304336,0.0393691,2344.8,2344.7,12.382855]
[1726612305535,0.0393691,2344.8,2344.7,16.647785]
[1726612305685,0.0393691,2344.8,2344.7,12.382855]
[1726612305916,2.5171691,2344.8,2344.7,11.52986]
[1726612306739,2.5171691,2344.8,2344.7,7.26493]
[1726612307139,2.5171691,2344.8,2344.7,11.52986]
[1726612307456,0.0393691,2344.8,2344.7,11.52986]
[1726612307960,0.0393691,2344.8,2344.7,12.63963311]
[1726612309055,0.0393691,2344.8,2344.7,14.95703311]
[1726612311028,0.0393691,2344.8,2344.7,19.22196311]
[1726612312173,0.0393691,2344.8,2344.7,14.95703311]
[1726612312373,0.0393691,2344.8,2344.7,19.22196311]
[1726612313132,0.0393691,2344.8,2344.7,14.95703311]
[1726612313543,0.0393691,2344.8,2344.7,12.63963311]
[1726612314435,0.0393691,2344.8,2344.7,16.90456311]
[1726612315233,2.3389691,2344.8,2344.7,12.63963311]
[1726612315435,2.3389691,2344.8,2344.7,11.52986]
[1726612316179,0.0393691,2344.8,2344.7,11.52986]
[1726612316378,0.0393691,2344.8,2344.7,18.07319]
[1726612316737,0.0393691,2344.8,2344.7,13.80826]
[1726612317151,0.0393691,2344.8,2344.7,18.07319]
[1726612317351,0.0393691,2344.8,2344.7,20.2897965]
[1726612318695,0.0393691,2344.8,2344.7,16.58793366]
[1726612318993,0.0393691,2344.8,2344.7,20.2897965]
[1726612319894,0.0393691,2344.8,2344.7,16.0248665]
[1726612320050,0.0393691,2344.8,2344.7,20.2897965]
[1726612321796,0.0393691,2344.8,2344.7,16.0248665]
[1726612322005,2.3623691,2344.8,2344.7,11.52986]
[1726612324291,2.3623691,2344.8,2344.7,4.26493]
[1726612324733,2.3623691,2344.8,2344.4,4.82852566]
[1726612324907,2.3623691,2344.8,2344.5,4.26517]
[1726612325401,2.3623691,2344.8,2344.4,4.26537]
[1726612325402,2.3623691,2344.8,2344.6,4.2651]
[1726612330012,2.3623691,2344.8,2344.5,4.26527]
[1726612330922,2.3623691,2344.8,2344.3,4.26558]
[1726612330923,2.3026,2344.7,2344.3,4.26558]
[1726612331075,4.3042191,2344.8,2344.2,4.26582]
[1726612331278,2.3026,2344.6,2344.2,8.53157]
[1726612331472,2.3026,2344.5,2344.2,8.53157]
[1726612332312,2.3026,2344.5,2344.2,4.26575]
[1726612332619,2.3026,2344.5,2344.3,4.26564]
[1726612335852,2.3026,2344.5,2344.2,4.26583]
[1726612336696,2.3026,2344.5,2344.4,4.26548]
[1726612341997,0.0393691,2344.8,2344.4,4.26548]
[1726612342329,2.3688,2344.7,2344.6,8.53019]
[1726612343706,0.0393691,2344.8,2344.6,8.5301]
[1726612344526,0.0393691,2344.8,2344.7,4.26493]
[1726612345047,0.0393691,2344.8,2344.6,4.26502]
[1726612345048,2.3596,2344.7,2344.6,4.26502]
[1726612345622,2.3596,2344.7,2344.5,4.26528]
[1726612345623,2.59949691,2344.7,2344.5,4.26528]
[1726612346649,2.59949691,2344.7,2344.6,4.26511]
[1726612346650,2.3596,2344.7,2344.6,4.26511]
[1726612347157,0.0393691,2344.8,2344.5,2.4892]
[1726612347325,0.0393691,2344.8,2344.7,8.52986]
[1726612351114,0.0393691,2344.8,2344.7,19.17286553]
[1726612351364,0.0393691,2344.8,2344.7,22.17286553]
[1726612351511,0.0393691,2344.8,2344.7,24.81667508]
[1726612353620,0.0393691,2344.8,2344.7,29.08160508]
[1726612355918,0.0393691,2344.8,2344.7,24.81667508]
[1726612357632,0.0393691,2344.8,2344.7,20.72209955]
[1726612358621,0.0393691,2344.8,2344.7,24.81667508]
[1726612364097,0.0393691,2344.8,2344.7,29.08160508]
[1726612364775,0.0393691,2344.8,2344.7,24.81667508]
[1726612365885,0.0393691,2344.8,2344.7,29.08160508]
[1726612366187,0.0393691,2344.8,2344.7,26.87565255]
[1726612366345,0.0393691,2344.8,2344.7,27.42565255]
[1726612367444,0.0393691,2344.8,2344.7,18.43859955]
[1726612367645,0.0393691,2344.8,2344.7,20.32722255]
[1726612388978,0.0393691,2344.8,2344.7,27.02525255]
[1726612389304,0.0393691,2344.8,2344.7,27.57525255]
[1726612392293,0.0393691,2344.8,2344.7,31.84018255]
[1726612392832,1e-08,2344.8,2344.7,27.57525255]
[1726612393731,1e-08,2344.8,2344.7,31.84018255]
[1726612394044,1e-08,2344.8,2344.7,27.57525255]
[1726612396899,1e-08,2344.8,2344.7,30.16488509]
[1726612397101,1e-08,2344.8,2344.7,27.57525255]
[1726612397315,1e-08,2344.8,2344.7,30.16488497]
[1726612397648,1e-08,2344.8,2344.7,30.1648849]
[1726612397944,1e-08,2344.8,2344.7,30.16488518]
[1726612398299,1e-08,2344.8,2344.7,21.02823218]
[1726612398504,1e-08,2344.8,2344.7,21.79092795]
[1726612398943,1e-08,2344.8,2344.7,26.05585795]
[1726612399445,1e-08,2344.8,2344.7,28.46475795]
[1726612399644,1e-08,2344.8,2344.7,29.59068518]
[1726612399893,1e-08,2344.8,2344.7,28.46475795]
[1726612400644,1e-08,2344.8,2344.7,29.59068518]
[1726612401018,1e-08,2344.8,2344.7,27.00105255]
[1726612401217,1e-08,2344.8,2344.7,29.59073895]
[1726612401943,1e-08,2344.8,2344.7,28.46478834]
[1726612404646,1e-08,2344.8,2344.7,27.00105255]
[1726612404846,1e-08,2344.8,2344.7,28.46478431]
[1726612408707,1e-08,2344.8,2344.7,28.464773]
[1726612410070,1e-08,2344.8,2344.7,33.279703]
[1726612410580,1e-08,2344.8,2344.7,33.2796804]
[1726612411308,1e-08,2345.5,2345.4,15.79098]
[1726612411503,1e-08,2345.5,2345.4,17.679603]
[1726612411711,1e-08,2345.5,2345.4,18.24252217]
[1726612412954,1e-08,2345.5,2345.4,17.679603]
[1726612413159,1e-08,2345.5,2345.4,18.2424962]
[1726612413475,1e-08,2345.5,2345.4,18.79904005]
[1726612413873,1e-08,2345.5,2345.4,19.36192261]
[1726612414399,1e-08,2345.5,2345.4,19.3619178]
[1726612414888,1e-08,2345.5,2345.4,30.8810378]
[1726612415064,2.477,2346.1,2346.0,10.413763]
[1726612415601,2.477,2346.1,2346.0,14.676333]
[1726612415984,2.427,2346.1,2346.0,14.676333]
[1726612416185,0.0393691,2346.2,2346.1,10.78788]
[1726612416402,0.0393691,2346.2,2346.1,15.78717]
[1726612416568,0.0393691,2346.2,2346.1,20.61227728]
[1726612416771,0.0393691,2346.2,2346.1,20.73427728]
[1726612416976,0.0393691,2346.2,2346.1,24.34590164]
[1726612417208,0.0393691,2346.2,2346.1,23.78318436]
[1726612417363,0.0393691,2346.2,2346.1,23.23318436]
[1726612418007,0.0393691,2346.2,2346.1,23.79582845]
[1726612418208,0.0393691,2346.2,2346.1,27.49557436]
[1726612418407,0.0393691,2346.2,2346.1,23.23318436]
[1726612418759,0.0393691,2346.2,2346.1,23.78318436]
[1726612420006,0.0393691,2346.2,2346.1,28.04557436]
[1726612420311,0.0393691,2346.2,2346.1,30.43797436]
[1726612421710,0.0393691,2346.2,2346.1,26.17558436]
[1726612424025,0.0393691,2346.2,2346.1,15.97079436]
[1726612424229,0.0393691,2346.2,2346.1,14.797793]
[1726612425298,0.0393691,2346.2,2346.1,17.797793]
[1726612425915,0.0393691,2346.2,2346.1,19.99641585]
[1726612436750,2.4145691,2346.2,2346.1,8.64678]
[1726612437802,2.4145691,2346.2,2346.1,11.64678]
[1726612444480,2.4145691,2346.2,2346.1,7.38439]
[1726612446174,2.4145691,2346.2,2346.1,11.64678]
[1726612454197,2.4145691,2346.2,2346.1,0.122]
[1726612454440,2.65602601,2346.2,2346.1,0.122]
[1726612454788,2.4145691,2346.2,2346.1,0.122]
[1726612454988,2.4145691,2346.2,2346.1,8.64678]
[1726612456608,0.0393691,2346.2,2346.1,8.64678]
[1726612458539,0.0393691,2346.2,2346.1,14.05478]
[1726612458825,0.0393691,2346.2,2346.1,18.31717]
[1726612459030,0.0393691,2346.2,2346.1,20.33760605]
[1726612467692,0.0393691,2346.2,2346.1,24.59999605]
[1726612468589,0.0393691,2346.2,2346.1,29.41238605]
[1726612478761,0.0393691,2346.2,2346.1,30.03470672]
[1726612483858,0.0393691,2346.2,2346.1,30.59727277]
[1726612484454,0.0393691,2346.2,2346.1,30.03470672]
[1726612484992,0.0393691,2346.2,2346.1,29.41238605]
[1726612488197,0.0393691,2346.2,2346.1,30.03470672]
[1726612488359,1e-08,2346.2,2346.1,30.59727277]
[1726612495591,1e-08,2346.2,2346.1,30.03470672]
[1726612496214,1e-08,2346.2,2346.1,26.45438605]
[1726612496417,1e-08,2346.2,2346.1,22.05875054]
[1726612496601,1e-08,2346.2,2346.1,19.05875054]
[1726612497931,1e-08,2346.2,2346.1,22.05875054]
[1726612500593,1e-08,2346.2,2346.1,17.79636054]
[1726612500802,1e-08,2346.2,2346.1,12.90917]
[1726612500803,2.33150001,2346.2,2346.1,12.90917]
[1726612501105,2.33150001,2346.2,2346.1,14.79636054]
[1726612502129,2.33150001,2346.2,2346.1,17.79636054]
[1726612502698,2.33150001,2346.2,2346.1,13.53397054]
[1726612502906,2.33150001,2346.2,2346.1,11.64678]
[1726612504501,2.33150001,2346.2,2346.1,13.53397054]
[1726612517405,2.354,2346.8,2346.7,8.5226]
[1726612517608,2.354,2346.8,2346.7,10.40979054]
[1726612517904,2.354,2346.8,2346.7,8.5226]
[1726612518342,0.0393691,2346.9,2346.8,8.52224]
[1726612518547,0.0393691,2346.9,2346.8,12.98930405]
[1726612518713,0.0393691,2346.9,2346.8,17.25042405]
[1726612519750,0.0393691,2346.9,2346.8,12.98930405]
[1726612519933,2.3933691,2346.9,2346.8,11.52224]